Cogmind - Beta 17 @@@ ROGUE MODE // 2026.07.07 @ 02:46:10 Player: Venar246 Result: Self-destructed Performance ------------- Evolutions (2) 1000 Regions Visited (5) 1000 Robots Destroyed (53) 265 Value Destroyed (1512) 1512 Prototype IDs (2) 40 Alien Tech Used (0) 0 Bonus (125) 125 TOTAL SCORE: 3942 Bonus ------- High Alert Combat Kills 40 Follower Combat Kills 85 Cogmind --------- Core Integrity 147/550 Matter 95/300 Energy 100/100 System Corruption 0% Temperature Cool (18) Movement Core (450) Ox8 Location -8/Materials Parts ------- > --- POWER (1) -------- (None) > --- PROPULSION (4) --- (None) > --- UTILITY (4) ------ Improved Heat Sink Large Storage Unit Improved Signal Interpreter > --- WEAPON (2) ------- Improved Light Cannon > --- INVENTORY (15) --- Ion Engine Light Ion Engine Light Deuterium Engine Light Nuclear Core Improved Heat Sink High-capacity Matter Pod (200) Structural Scanner Improved Terrain Scanner Improved Terrain Scanner Recoil Stabilizer Hacking Suite Peak State ------------ > --- POWER ------------ Light Angular Momentum Engine > --- PROPULSION ------- Aluminum Leg Aluminum Leg Aluminum Leg Carbon-fiber Leg > --- UTILITY ---------- Improved Heat Sink Large Storage Unit Experimental Sensor Array Improved Signal Interpreter > --- WEAPON ----------- Particle Cannon Missile Launcher > --- INVENTORY -------- Ion Engine Light Ion Engine Light Ion Engine Light Deuterium Engine Light Nuclear Core Improved Heat Sink High-capacity Matter Pod Structural Scanner Improved Terrain Scanner Improved Terrain Scanner Recoil Stabilizer Hacking Suite Assault Rifle Improved Light Cannon Hammer [Rating: 35] Favorites ----------- Power Ion Engine Engine Ion Engine Power Core Light Nuclear Core Propulsion Aluminum Leg Leg Aluminum Leg Utility Large Storage Unit Device Structural Scanner Storage Large Storage Unit Processor Signal Interpreter Protection Light Armor Plating Weapon Light Assault Rifle Energy Gun Improved EM Shotgun Energy Cannon Particle Cannon Ballistic Gun Light Assault Rifle Ballistic Cannon Light Cannon Launcher Grenade Launcher Impact Weapon Hammer Build | -11 -10 -10 -10 -9 -8 ------- Run | Yrd Mat Min Exi Min Mat Slots Evolved 4 | . . . . . 4 Power . | . . . . . . Propulsion 2 | . . . . . 2 Utility 2 | . . . . . 2 Weapon . | . . . . . . Parts Attached 43 | 6 5 12 . 6 14 Power 7 | 1 1 1 . 1 3 Engine 5 | 1 . 1 . . 3 Core 2 | . 1 . . 1 . Reactor . | . . . . . . Propulsion 12 | 2 . 4 . 3 3 Treads . | . . . . . . Leg 12 | 2 . 4 . 3 3 Wheel . | . . . . . . Hover . | . . . . . . Flight . | . . . . . . Utility 10 | 1 3 3 . . 3 Device 4 | . 1 1 . . 2 Storage 2 | 1 . 1 . . . Processor 2 | . . 1 . . 1 Hackware . | . . . . . . Protection 2 | . 2 . . . . Artifact . | . . . . . . Weapon 14 | 2 1 4 . 2 5 Energy Gun 1 | . . . . . 1 Energy Cannon 1 | . . . . 1 . Ballistic Gun 6 | 2 . 4 . . . Ballistic Cannon 2 | . . . . 1 1 Launcher 3 | . 1 . . . 2 Special Weapon . | . . . . . . Impact Weapon 1 | . . . . . 1 Slashing Weapon . | . . . . . . Piercing Weapon . | . . . . . . Special Melee Weapon . | . . . . . . Unidentified Prototypes 2 | . . . . . 2 Parts Lost 16 | . 1 2 . . 13 Power 3 | . . 1 . . 2 Propulsion 6 | . . . . . 6 Utility 2 | . 1 . . . 1 Weapon 5 | . . 1 . . 4 Highest Loss Streak 12 | . 1 1 . . 12 To Critical Strikes . | . . . . . . Average Backups 11 | 1 6 10 13 14 13 Power 1 | . 1 1 2 2 4 Propulsion . | . . . 1 1 . Utility 5 | . 2 4 6 6 5 Weapon 3 | . 1 3 4 4 3 Tool/Special . | . . . . . . Unused Backups 9 | . 2 1 . . 6 Power 1 | . . . . . 1 Propulsion . | . . . . . . Utility 6 | . . 1 . . 5 Weapon 1 | . 1 . . . . Tool/Special 1 | . 1 . . . . Average Slot Usage (%) 98 | . 97 99 100 100 91 Engine 12 | . 9 12 14 13 7 Leg 28 | . 28 28 28 28 30 Device 4 | . 3 9 . . 17 Storage 13 | . 14 14 14 14 9 Processor 9 | . . 3 14 14 9 Protection 1 | . 8 1 . . . Energy Cannon 2 | . . . . 5 7 Ballistic Gun 21 | . 27 27 28 16 . Ballistic Cannon 2 | . . . . 5 4 Peak Build Rating 35 | 6 11 10 8 12 35 Average Rating 10 | 4 8 8 8 9 28 On Entrance 7 | . 6 10 8 8 12 Avg Prop Armor Cover (%) . | . . . . . . Naked Turns . | . . . . . . Heaviest Build 41 | 13 16 29 28 32 41 Greatest Support 45 | 20 20 20 20 20 45 Greatest Overweight (x) 2 | 2 . 2 1 1 2 Average Overweight (x) . | . . . 1 1 . Largest Inventory Capacity 15 | 8 8 15 15 15 15 Average Capacity 13 | 6 8 13 15 15 15 Most Carried 15 | 2 8 13 13 15 15 Average Carried 11 | . 6 10 13 14 13 Final Capacity 15 | 8 8 15 15 15 15 Final Carried 15 | 2 8 13 13 15 11 Class Distribution -------------------- 64% | Mutant 22% | Scavenger-Mutant 12% | Derelict-Mutant Dominant Class ---------------- Mutant | -10/Materials Scavenger-Mutant | -10/Mines Mutant | -10/Exiles Mutant | -9/Mines Scavenger-Mutant | -8/Materials Resources | -11 -10 -10 -10 -9 -8 ----------- Run | Yrd Mat Min Exi Min Mat Matter Collected 1532 | 128 242 699 . 241 222 Remotely . | . . . . . . Salvage Created 1283 | . 270 353 . 169 491 Parts 94 | . 22 26 . 13 33 Haulers Intercepted 1 | . . . . . 1 Recyclers Shooed 2 | . . . . . 2 Parts Field Recycled . | . . . . . . Retrieved Matter . | . . . . . . Parts Self-Destructed . | . . . . . . Prevented . | . . . . . . Parts Restored . | . . . . . . Kills | -11 -10 -10 -10 -9 -8 ------- Run | Yrd Mat Min Exi Min Mat Combat Hostiles Destroyed 47 | . 7 19 . 3 18 Melee 1 | . . . . . 1 Guns 23 | . 5 17 . 1 . Cannons 6 | . . . . 2 4 AOE 17 | . 2 2 . . 13 Classes Destroyed 10 | . 2 2 . 1 5 Worker 1 | . . . . . 1 Builder 4 | . 2 . . . 2 Hauler 1 | . . . . . 1 Watcher 2 | . . . . . 2 Swarmer 16 | . . 12 . . 4 Grunt 22 | . 7 4 . 3 8 Brawler 4 | . . . . 1 3 Duelist 2 | . . . . . 2 Protector 1 | . . . . . 1 Assembled 3 | . . 3 . . . Best Kill Streak 14 | . 5 3 . 2 14 Combat Bots Only 9 | . 4 3 . 2 9 Max Kills in Single Turn 7 | . 3 2 . 2 7 Gunslinging 1 | . . 1 . . . Exploded 4 | . 2 2 . . 4 Melee 1 | . . . . . 1 Uniques/NPCs Destroyed . | . . . . . . Combat | -11 -10 -10 -10 -9 -8 -------- Run | Yrd Mat Min Exi Min Mat Hostile Shots Fired 264 | . 42 93 . 6 123 Missed 82 | . 10 26 . 2 44 Hits 182 | . 32 67 . 4 79 Melee 5 | . . 3 . . 2 Projectile 177 | . 32 64 . 4 77 Critical Strikes 9 | . 1 2 . . 6 Part Disruptions 1 | . . 1 . . . Damage Taken 2704 | . 468 735 . 42 1459 Core 593 | . 63 105 . 22 403 Absorbed by Shields . | . . . . . . Core Remaining (%) 62 | 100 . . . 24 . Volleys Fired 122 | . 24 57 . 7 34 Largest 2 | . 2 2 . 2 2 Hottest 104 | . 50 50 . 98 104 Shots Fired 217 | . 48 106 1 9 53 Gun 154 | . 42 105 1 5 1 Cannon 44 | . . . . 4 40 Launcher 19 | . 6 1 . . 12 Special . | . . . . . . Kinetic 175 | . 42 105 1 7 20 Thermal 23 | . . . . 2 21 Explosive 19 | . 6 1 . . 12 Electromagnetic . | . . . . . . Robot Hit Streak 13 | . 6 12 . 7 13 Robot Miss Streak 4 | . 2 3 . 2 4 Penetration Max . | . . . . . . Secondary Targets 4 | . . 4 . . . Max Gunslinging Chain 1 | . . 1 . . . Shots Hit Robots 129 | . 25 59 . 6 39 Core Hits 94 | . 20 28 . 6 40 Critical Kills 1 | . . . . . 1 Critical Parts Destroyed 2 | . . 2 . . . Critical Strikes 3 | . . 2 . . 1 Destroy 2 | . . 2 . . . Smash 1 | . . . . . 1 Melee Attacks 8 | . . . . . 8 Impact 8 | . . . . . 8 Slashing . | . . . . . . Piercing . | . . . . . . Sneak Attacks 1 | . . . . . 1 Combat Hostiles . | . . . . . . Follow-up Attacks . | . . . . . . Damage Inflicted 4297 | 2 590 789 . 132 2784 Guns 978 | . 268 634 . 61 15 Cannons 622 | . . . . 57 565 Explosions 2508 | . 322 115 . . 2071 Melee 133 | . . . . . 133 Ramming 56 | 2 . 40 . 14 . Kinetic 1276 | . 268 634 . 76 298 Thermal 968 | . . . . 42 926 Explosive 1864 | . 322 115 . . 1427 Electromagnetic . | . . . . . . Impact 133 | . . . . . 133 Slashing . | . . . . . . Piercing . | . . . . . . Highest Corruption 6 | . 6 6 6 6 . Average Corruption 5 | . 4 6 6 6 . Corruption Purged . | . . . . . . Corruption Blocked . | . . . . . . Effects 104 | . 1 35 34 34 . Message Errors 30 | . . 7 9 14 . Matter Fused 30 | . . 10 12 8 . Heat Flow Errors 7 | . . 1 4 2 . Energy Discharges 11 | . 1 3 4 3 . Parts Fused 1 | . . . . 1 . Data Loss (minor) 14 | . . 6 3 5 . Data Loss (major) 5 | . . 3 1 1 . Misfires 5 | . . 4 1 . . Weapon Failures 1 | . . 1 . . . Overload Shots . | . . . . . . Overflow Damage 363 | . 33 . . . 330 Projectiles . | . . . . . . Explosions 323 | . 33 . . . 290 Melee 40 | . . . . . 40 Knockbacks 1 | . . . . . 1 Impact . | . . . . . . Kinetic 1 | . . . . . 1 Secondary . | . . . . . . Self-Inflicted Damage 231 | . . . . . 231 Shots 5 | . . . . . 5 Rammed . | . . . . . . Targets Rammed 15 | 1 . 8 . 6 . Kicked 15 | 1 . 8 . 6 . Crushed . | . . . . . . Highest Temperature 214 | . 112 213 214 149 20 Average Temperature 53 | . 43 65 88 54 5 Received Heat Transfer 1243 | . 252 229 . 24 738 Siege Activations . | . . . . . . Martial Activations . | . . . . . . Shielding Activations . | . . . . . . Robots Disrupted . | . . . . . . Combat Hostiles . | . . . . . . Robots Corrupted 1 | . . . . . 1 Combat Hostiles . | . . . . . . Parts Fried 1 | . . . . . 1 Impact Corruptions 1 | . . . . . 1 Robots Melted . | . . . . . . Combat Hostiles . | . . . . . . Parts Melted . | . . . . . . Heat Transferred 984 | . . . . 74 910 Parts Sabotaged . | . . . . . . Parts Stolen . | . . . . . . Parts Stripped . | . . . . . . Power Chain Reactions . | . . . . . . Alert | -11 -10 -10 -10 -9 -8 ------- Run | Yrd Mat Min Exi Min Mat Maximum Alert Level 2 | . . . . . 2 Low Security (%) 95 | 100 100 100 . 100 62 Level 1 2 | . . . . . 20 Level 2 2 | . . . . . 17 Level 3 . | . . . . . . Level 4 . | . . . . . . Level 5 . | . . . . . . High Security . | . . . . . . Max Security . | . . . . . . Peak Influence 491 | . 157 147 . 70 491 Initial 31 | . . 31 . . 22 Average 51 | . 61 48 . 9 200 Influence Increases 1493 | . 232 393 . 152 716 Destroy 0b10 Robot/C 920 | . 140 320 . 120 340 Destroy 0b10 Robot/NC 45 | . 10 . . . 35 Destroy Leader 166 | . 40 50 . 20 56 Allied During Kill 12 | . . . . 12 . Successful Hack 5 | . . . . . 5 Disable Machine 60 | . . 15 . . 45 Anti-Garrison Action 150 | . . . . . 150 Destroy Structure 105 | . 27 8 . . 70 Partial Spotted 15 | . 15 . . . . Lose Combat Pursuer 15 | . . . . . 15 Influence Decreases 1090 | . 149 476 . 94 371 Entered New Map 88 | . . 52 . . 36 Time Decay 840 | . 139 414 . 94 193 Lost Part 150 | . 10 10 . . 130 Lost Ally 12 | . . . . . 12 Squads Dispatched 6 | . 2 . . . 4 Investigation 2 | . 1 . . . 1 Extermination . | . . . . . . Reinforcement 2 | . 1 . . . 1 Assault 2 | . . . . . 2 Garrison . | . . . . . . Intercept . | . . . . . . Searches Triggered . | . . . . . . Construction Impeded 1 | . . . . . 1 Haulers Reinforced . | . . . . . . Active Scanning Responses . | . . . . . . Cargo Convoy Interrupts . | . . . . . . Stealth | -11 -10 -10 -10 -9 -8 --------- Run | Yrd Mat Min Exi Min Mat Distress Signals 7 | . 3 1 . . 3 Communications Jammed . | . . . . . . Distress Signals . | . . . . . . Times Spotted 68 | . 15 19 . 4 30 Peak Tracking Total 11 | . 7 3 . 3 11 Tactical Retreats 2 | . . 1 . . 1 Traps | -11 -10 -10 -10 -9 -8 ------- Run | Yrd Mat Min Exi Min Mat Traps Triggered 5 | . 5 . . . . Indirectly . | . . . . . . Trap Hack Attempts . | . . . . . . Triggered . | . . . . . . Disarmed . | . . . . . . Reprogrammed . | . . . . . . Reused . | . . . . . . Traps Extracted . | . . . . . . Installed 3 | . . . . 3 . Triggered . | . . . . . . Machines | -11 -10 -10 -10 -9 -8 ---------- Run | Yrd Mat Min Exi Min Mat Machines Disabled 5 | . . 1 . . 4 Max in Single Turn 2 | . . 1 . . 2 Garrison Access 1 | . . . . . 1 Machines Repaired . | . . . . . . Machines Dismantled . | . . . . . . Machines Sabotaged . | . . . . . . Overloaded Fab Kills . | . . . . . . Hacking | -11 -10 -10 -10 -9 -8 --------- Run | Yrd Mat Min Exi Min Mat Machines Accessed 6 | . . . 4 . 2 Terminals 1 | . . . . . 1 Fabricators . | . . . . . . Repair Stations . | . . . . . . Recycling Units . | . . . . . . Scanalyzers . | . . . . . . Garrison Access 1 | . . . . . 1 Total Hacks 8 | . . . 4 . 4 Successful 6 | . . . 4 . 2 Failed 2 | . . . . . 2 Catastrophic 1 | . . . . . 1 Database Lockouts . | . . . . . . Manual 2 | . . . 2 . . Terminals 2 | . . . . . 2 Fabricators . | . . . . . . Repair Stations . | . . . . . . Recycling Units . | . . . . . . Scanalyzers . | . . . . . . Garrison Access 2 | . . . . . 2 Terminal Hacks 6 | . . . 4 . 2 Record 4 | . . . 4 . . Transport Status 1 | . . . . . 1 Zone Layout 1 | . . . . . 1 Fabricator Hacks . | . . . . . . Repair Station Hacks . | . . . . . . Recycling Unit Hacks . | . . . . . . Scanalyzer . | . . . . . . Garrison Access Hacks . | . . . . . . Unauthorized Hacks . | . . . . . . Terminals . | . . . . . . Fabricators . | . . . . . . Repair Stations . | . . . . . . Recycling Units . | . . . . . . Scanalyzers . | . . . . . . Garrison Access . | . . . . . . Data Cores Recovered . | . . . . . . Used . | . . . . . . Hacking Detections 1 | . . . . . 1 Full Trace Events 1 | . . . . . 1 Feedback Events . | . . . . . . Feedback Blocked . | . . . . . . Robot Schematics Acquired . | . . . . . . Robots Built . | . . . . . . Authchips . | . . . . . . Time . | . . . . . . Total Robot Build Rating . | . . . . . . Part Schematics Acquired . | . . . . . . Parts Built . | . . . . . . Authchips . | . . . . . . Time . | . . . . . . Total Part Build Rating . | . . . . . . Part Studies Acquired . | . . . . . . Parts Repaired . | . . . . . . Time . | . . . . . . Parts Recycled . | . . . . . . Recycled Matter . | . . . . . . Retrieved Matter . | . . . . . . Retrieved Components . | . . . . . . Parts Scanalyzed . | . . . . . . Part Schematics Acquired . | . . . . . . Parts Damaged . | . . . . . . Bothacking | -11 -10 -10 -10 -9 -8 ------------ Run | Yrd Mat Min Exi Min Mat Used RIF Installer . | . . . . . . Robots Hacked . | . . . . . . Non-combat . | . . . . . . Combat . | . . . . . . Robot Hacks Applied . | . . . . . . Relay Couplers Released 2 | . . . . . 2 Machine Destruction 2 | . . . . . 2 Fabnet Peak Effective % . | . . . . . . Robots Rewired . | . . . . . . Allies Hacked . | . . . . . . Hacks Repelled . | . . . . . . Allies | -11 -10 -10 -10 -9 -8 -------- Run | Yrd Mat Min Exi Min Mat Total Allies 4 | . . 1 . 3 . Largest Group 3 | . . 1 . 3 1 Highest-Rated Group 40 | . . 31 . 40 16 Highest-Rated Ally 31 | . . 31 . 16 16 Total Orders . | . . . . . . Ally Attacks 23 | . . . . 22 1 Total Damage 200 | . . . . 200 . Kills 3 | . . . . 3 . Allies Corrupted . | . . . . . . Allies Melted . | . . . . . . Intel | -11 -10 -10 -10 -9 -8 ------- Run | Yrd Mat Min Exi Min Mat Active Infowar (turns) 1213 | . . 801 . . 412 Sensors 411 | . . . . . 411 Structural 802 | . . 801 . . 1 Robot Analysis Total . | . . . . . . Derelict Logs Recovered 3 | . . 1 . 2 . Drone Launches . | . . . . . . Drone Recoveries . | . . . . . . Exploration | -11 -10 -10 -10 -9 -8 ------------- Run | Yrd Mat Min Exi Min Mat Turns Passed 4654 | 61 444 1184 1142 1404 419 Spaces Moved 2337 | 40 289 567 602 652 187 Core 16 | 16 . . . . . Treads . | . . . . . . Legs 2321 | 24 289 567 602 652 187 Wheels . | . . . . . . Hover . | . . . . . . Flight . | . . . . . . Fastest Speed 50 | 50 120 120 190 190 120 Average Speed 172 | 123 120 174 190 190 138 Slowest Speed 260 | 190 120 260 190 190 260 Overloaded Moves . | . . . . . . Propulsion Burnouts . | . . . . . . Robots Hopped . | . . . . . . Potential Cave-ins . | . . . . . . Cave-ins Triggered . | . . . . . . Exploration Rate (%) 59 | 4 54 94 93 93 20 Regions Visited 5 Branch Regions 3 Pre-discovered Areas 2 | . . 1 . 1 . Known Exits Taken 3 | . . 1 1 1 . Unknown Exits Taken 2 | 1 1 . . . . Scrap Searched 4 | . . 2 . 2 . Spaces Dug 1 | . . . . . 1 Terrain Destroyed 108 | . 32 8 . . 68 Melee 1 | . . . . . 1 Projectile . | . . . . . . AOE 107 | . 32 8 . . 67 Terrain Rammed . | . . . . . . Walls Destroyed . | . . . . . . Machines Disabled . | . . . . . . Actions | -11 -10 -10 -10 -9 -8 --------- Run | Yrd Mat Min Exi Min Mat Total 2734 | 48 342 664 601 806 273 Wait 144 | . 13 4 . 120 7 Move 2332 | 39 288 566 601 651 187 Hop . | . . . . . . Pick Up 27 | 2 8 5 . 6 6 Fast Attach 10 | 6 2 . . . 2 Attach 11 | . . 2 . . 9 Detach 1 | . . . . . 1 Swap 41 | . 4 16 . 6 15 Drop 20 | . 3 6 . 7 4 Fire 122 | . 24 57 . 7 34 Melee 8 | . . . . . 8 Ram . | . . . . . . Kick 15 | 1 . 8 . 6 . Crush . | . . . . . . Escape Stasis . | . . . . . . Rewire . | . . . . . . Trap 3 | . . . . 3 . Miscellaneous . | . . . . . . Route ------- -11/Scrapyard -10/Materials (discovered 2 exits: *Mat / [*Min]) -10/Mines (discovered 3 exits: *Mat x2 / *Exi) -10/Exiles (discovered 2 exits: *Min x2) -9/Mines (discovered 2 exits: *Mat x2) -8/Materials History --------- Turn | Location | Event 7 | -11/Scrapyard | Discovered new exit (range 16) 62 | -11/Scrapyard | Entered Materials 320 | -10/Materials | Build established: Mutant 386 | -10/Materials | Discovered new exit (range 16) 499 | -10/Materials | Discovered new exit (range 7) 506 | -10/Materials | Entered Mines 579 | -10/Mines | Excavation squad dispatched 579 | -10/Mines | A large section of the Mines collapsed 698 | -10/Mines | Discovered new exit (range 12) 877 | -10/Mines | Core integrity fell below 50% 996 | -10/Mines | Build established: Scavenger-Mutant 1336 | -10/Mines | Discovered new exit (range 15) 1369 | -10/Mines | Escorted by a lone wolf Derelict 1471 | -10/Mines | Identified exit to Materials 1676 | -10/Mines | Deemed a non-threat by the Exiles lab entrance 1678 | -10/Mines | Discovered new exit (range 5) 1686 | -10/Mines | Identified exit to Exiles 1690 | -10/Mines | Entered Exiles 1690 | -10/Exiles | Found Exiles lab abandoned 1690 | -10/Exiles | Accompanied by 1 ally 1717 | -10/Exiles | Discovered new exit (range 15) 1733 | -10/Exiles | Build established: Mutant 1742 | -10/Exiles | Identified exit to Mines 2811 | -10/Exiles | Discovered exit to Mines (range 12) 2832 | -10/Exiles | Entered Mines 2866 | -9/Mines | YI-UF0 nonchalantly dropped a Grenade Launcher on the ground 2906 | -9/Mines | Learned Materials stockpile data 2928 | -9/Mines | Assisted by bots powering up and referring to "LRC-V3" 3067 | -9/Mines | Found a hidden stash of uninstalled traps 3142 | -9/Mines | Learned location of Zion (-6) 3446 | -9/Mines | Found a damaged Exp. Sensor Array with a note attached 3450 | -9/Mines | Found Prototype Device 3932 | -9/Mines | Build established: Derelict-Mutant 4124 | -9/Mines | Discovered new exit (range 8) 4137 | -9/Mines | Identified exit to Materials 4184 | -9/Mines | Discovered exit to Materials (range 11) 4236 | -9/Mines | Entered Materials 4236 | -8/Materials | Accompanied by 1 ally 4236 | -8/Materials | Evolved 4 slots: Propulsion x2, Utility x2 4240 | -8/Materials | Identified Exp. Sensor Array 4552 | -8/Materials | Build established: Scavenger-Mutant 4618 | -8/Materials | Destroyed 9 combat bots 4642 | -8/Materials | Core integrity fell below 50% 4655 | -8/Materials | Self-destructed Last Messages --------------- 04597_ B-36 Bruiser destroyed. 04600_ Acquired 34 matter. 04600_ Assault Rifle destroyed. 04605_ Acquired 32 matter. 04609_ Acquired Imp. Aluminum Leg. 04611_ Critical hit (Burn: +37). 04613_ K-01 Serf collects debris. 04618_ The unstable cave ceiling collapses. 04620_ K-01 Serf collects debris. 04630_ Imp. Aluminum Leg destroyed. 04633_ K-01 Serf collects debris. 04638_ Aluminum Leg destroyed. 04639_ T-07 Excavator destroyed. 04640_ K-01 Serf collects debris. 04641_ Aluminum Leg destroyed. 04645_ Critical hit (Burn: +37). 04647_ Hammer destroyed. 04647_ Critical hit (Burn: +37). 04651_ Exp. Sensor Array destroyed. 04653_ Lgt. Ion Engine destroyed. Map ----- +----------------------------------------------------+ | ??????????#+### ! """ ????????????? | | ??????????# +? """# #???????????? | | ??????????# #? # #???????????? | | ??????????# ### # # # ## ?????????? | | ??????????# ?????????? | | ??????????+ = ??????????? | | ??????????# %= ??????????? | | ??????????## ### # "G ! +###?????????? | | ???????????# #?## "" = # #?????????? | | ???????????# #??# # ! [#?????????? | | ???????????# #??# #?????????? | | ??????????##+#### "" #?????????? | | ??????????# = ! ""???????????? | | ??????????#] !%* ?????????????? | | ??????????# / =##??????????????? | | ??????????#// ! %##??????????????? | | ??????????#/ #! / #??????????????? | | ??????????# [ # ! #########??????? | | ????############## %= ???? | | ????# !! # % ???? | | ????# ! # % ???? | | ????# ! # % "" ############????? | | ????# # % ;""""""####????????????? | | ????# #g g# #????????????? | | ????########+#####g # #????????????? | | ??????????# r@# #????????????? | | ????####### # """ """ #????????????? | | ????# # """ """ #????????????? | | ????# ! ; """ """ #????????????? | | ????# =% # #????????????? | | ????# = ! # #????????????? | | ????# [[ ###########????????????? | | ????# [[ ??????????????? | | ????# "T" % [[ ????????????? | | ????# "" % ?????????????? | | ????# ?????????????? | | ????# ?????????????? | | ????# ######## #############????????????? | | ???## % % #??????# #????????????????????????? | | ???## ##?????# #????????????????????????? | | ???##= *##?????# #????????????????????????? | | ???##%! ##?????# #????????????????????????? | | ???##[! ##?????# #????????????????????????? | | ???##! ##?????# #????????????????????????? | | ???## ##?????# #????????????????????????? | | ????# ##?????# #????????????????%??????]? | | #####+# ######## #????????????????????????? | | # # [ # """ # #????????????????????????? | | # """ # %=# "T" # #????????????????????????? | | # """ # # # #????????????????????????? | +----------------------------------------------------+ Best States ------------- Heat Dissipation 45 Energy Generation 18 Energy Capacity 250 Matter Stores 300 Matter Capacity 300 Sight Range 16 Robot Scan Range 20 Terrain Scan Density 10 Armor Coverage 150 Evasion (%) 55 Item Schematics ----------------- None Robot Schematics ------------------ None Fabricated ------------ Nothing Repaired ---------- Nothing Studied --------- None Alien Tech Used ----------------- None Achievements -------------- None Challenges ------------ None Game ------ Seed AntimissileIonMiniperforator Manual? 0 Play Time 00:23:00 Cumulative 51.2 hours Start 2026.07.06 @ 21:43:37 End 2026.07.07 @ 02:46:10 Sessions 3 Manual Loads 0 Difficulty Rogue Special Mode None Game No. 92 Rogue 92 Adventurer 0 Explorer 0 Win Type - Total 1 Types 1/0/0/0/0/0/0/0/0/0 Lore% 27 Gallery% 35 Achievement% 26 Wizard Run 0 Options --------- Layout 1 ASCII 0 Keyboard 0 Movement Arrows Keybinds 0 Fullscreen 1 Font 32/SmallcapsGlow Map View 50x35 Zoom Use 0% Tactical HUD 1 Map Filters NONE Filters NONE Steam 1 RUN: 2b5334f9-cecc-4dbf-ab13-cfe918d6e620